fUST/lending_fUST_20250326
["ID","MTS","AMOUNT","RATE_DAILY","PERIOD"]
[356681094,1742941833419,-500.0,0.0001178,2]
[356681095,1742941833429,-500.0,0.0001178,2]
[356681096,1742941833440,-500.0,0.0001178,2]
[356681097,1742941833450,-500.0,0.0001178,2]
[356681098,1742941833460,-500.0,0.0001178,2]
[356681099,1742941833470,-1092.75,0.0001178,2]
[356681100,1742941833480,-500.0,0.0001178,2]
[356681101,1742941833490,-500.0,0.00012054,2]
[356681102,1742941833500,-500.0,0.00012054,2]
[356681103,1742941833511,-574.26,0.00012054,2]
[356681104,1742941833522,-500.0,0.00012054,2]
[356681105,1742941833532,-500.0,0.00012054,2]
[356681106,1742941833542,-500.0,0.00012054,2]
[356681107,1742941833552,-500.0,0.00012054,2]
[356681108,1742941833567,-500.0,0.00012054,2]
[356681109,1742941833577,-500.0,0.00012054,2]
[356681110,1742941833587,-627.07,0.00012054,2]
[356681111,1742941833597,-1092.75,0.00012054,2]
[356681112,1742941833608,-500.0,0.00012054,2]
[356681113,1742941833618,-500.0,0.00012328,2]
[356681114,1742941833629,-500.0,0.00012328,2]
[356681115,1742941833639,-574.26,0.00012328,2]
[356681116,1742941833649,-500.0,0.00012328,2]
[356681117,1742941833659,-500.0,0.00012328,2]
[356681118,1742941833670,-500.0,0.00012328,2]
[356681119,1742941833680,-500.0,0.00012328,2]
[356681120,1742941833689,-500.0,0.00012328,2]
[356681121,1742941833699,-500.0,0.00012328,2]
[356681122,1742941833708,-1092.75,0.00012328,2]
[356681123,1742941833718,-500.0,0.00012328,2]
[356681124,1742941833727,-500.0,0.00012382,2]
[356681125,1742941833737,-500.0,0.00012382,2]
[356681126,1742941833746,-500.0,0.00012382,2]
[356681127,1742941833756,-500.0,0.00012382,2]
[356681128,1742941833766,-500.0,0.00012382,2]
[356681129,1742941833775,-500.0,0.00012382,2]
[356681130,1742941833784,-500.0,0.00012382,2]
[356681131,1742941833794,-500.0,0.00012382,2]
[356681132,1742941833804,-500.0,0.00012382,2]
[356681133,1742941833820,-500.0,0.00012382,2]
[356681134,1742941833831,-500.0,0.00012382,2]
[356681135,1742941833840,-233.88045271,0.00012382,2]
[356681144,1742941837843,-266.11954729,0.00012382,2]
[356681145,1742941837853,-500.0,0.00012601,2]
[356681146,1742941837863,-240.06269271,0.00012601,2]
[356681147,1742941837873,-500.0,0.00012602,2]
[356681148,1742941837882,-500.0,0.00012602,2]
[356681149,1742941837892,-574.26,0.00012602,2]
[356681150,1742941837902,-374.19518804,0.00012602,2]
[356681151,1742941837914,-125.80481196,0.00012602,2]
[356681152,1742941837923,-500.0,0.00012602,2]
[356681153,1742941837933,-500.0,0.00012602,2]
[356681154,1742941837947,-500.0,0.00012602,2]
[356681156,1742941837956,-500.0,0.00012602,2]
[356681157,1742941837965,-500.0,0.00012602,2]
[356681158,1742941837975,-1092.75,0.00012602,2]
[356681160,1742941837987,-500.0,0.00012602,2]
[356681162,1742941837996,-500.0,0.00012876,2]
[356681164,1742941838005,-500.0,0.00012876,2]
[356681166,1742941838015,-574.26,0.00012876,2]
[356681168,1742941838024,-500.0,0.00012876,2]
[356681169,1742941838033,-500.0,0.00012876,2]
[356681170,1742941838042,-500.0,0.00012876,2]
[356681171,1742941838051,-500.0,0.00012876,2]
[356681172,1742941838061,-500.0,0.00012876,2]
[356681173,1742941838073,-633.02,0.00012876,2]
[356681174,1742941838082,-1092.75,0.00012876,2]
[356681175,1742941838091,-167.55000276,0.00012876,2]
[356681176,1742941838102,-160.0,0.00013056,2]
[356681177,1742941838112,-834.75273087,0.00013056,2]
[356681178,1742941838121,-160.0,0.00013056,2]
[356681179,1742941838130,-418.3522718,0.00013056,2]
[356681180,1742941838139,-500.0,0.0001315,2]
[356681181,1742941838149,-500.0,0.0001315,2]
[356681182,1742941838158,-574.26,0.0001315,2]
[356681183,1742941838171,-500.0,0.0001315,2]
[356681184,1742941838183,-500.0,0.0001315,2]
[356681185,1742941838193,-500.0,0.0001315,2]
[356681186,1742941838203,-500.0,0.0001315,2]
[356681187,1742941838212,-500.0,0.0001315,2]
[356681188,1742941838221,-1092.75,0.0001315,2]
[356681189,1742941838231,-500.0,0.00013424,2]
[356681190,1742941838240,-500.0,0.00013424,2]
[356681191,1742941838249,-574.26,0.00013424,2]
[356681192,1742941838259,-500.0,0.00013424,2]
[356681193,1742941838268,-500.0,0.00013424,2]
[356681194,1742941838277,-500.0,0.00013424,2]
[356681195,1742941838286,-500.0,0.00013424,2]
[356681196,1742941838295,-500.0,0.00013424,2]
[356681197,1742941838305,-1092.75,0.00013424,2]
[356681198,1742941838316,-1224.41364444,0.00013589,2]
[356681199,1742941838326,-500.0,0.00013698,2]
[356681200,1742941838335,-262.84,0.00013698,2]
[356681201,1742941838345,-574.26,0.00013698,2]
[356681202,1742941838355,-500.0,0.00013698,2]
[356681203,1742941838365,-500.0,0.00013698,2]
[356681204,1742941838374,-500.0,0.00013698,2]
[356681205,1742941838385,-500.0,0.00013698,2]
[356681206,1742941838395,-463.42,0.00013698,2]
[356681207,1742941838405,-1092.75,0.00013698,2]
[356681208,1742941838414,-186.807722,0.00013699,2]
[356681209,1742941838423,-500.0,0.00013699,2]
[356681210,1742941838432,-500.0,0.00013699,2]
[356681211,1742941838441,-500.0,0.00013699,2]
[356681212,1742941838450,-500.0,0.00013699,2]
[356681213,1742941838459,-500.0,0.00013699,2]
[356681214,1742941838469,-500.0,0.00013699,2]
[356681215,1742941838478,-500.0,0.00013699,2]
[356681216,1742941838487,-500.0,0.00013699,2]
[356681217,1742941838497,-500.0,0.00013699,2]
[356681218,1742941838506,-489.28605474,0.00013699,2]
[356681219,1742941838515,-500.0,0.00013699,2]
[356681220,1742941838525,-500.0,0.00013699,2]
[356681221,1742941838534,-500.0,0.00013699,2]
[356681222,1742941838543,-500.0,0.00013699,2]
[356681223,1742941838553,-500.0,0.00013699,2]
[356681224,1742941838565,-500.0,0.00013972,2]
[356681225,1742941838574,-574.26,0.00013972,2]
[356681226,1742941838584,-500.0,0.00013972,2]
[356681227,1742941838593,-500.0,0.00013972,2]
[356681228,1742941838604,-500.0,0.00013972,2]
[356681229,1742941838613,-500.0,0.00013972,2]
[356681230,1742941838622,-1092.75,0.00013972,2]
[356681231,1742941838631,-1000.0,0.00014,2]
[356681232,1742941838641,-500.0,0.00014246,2]
[356681233,1742941838650,-574.26,0.00014246,2]
[356681234,1742941838660,-500.0,0.00014246,2]
[356681235,1742941838669,-500.0,0.00014246,2]
[356681236,1742941838679,-500.0,0.00014246,2]
[356681237,1742941838688,-500.0,0.00014246,2]
[356681238,1742941838698,-1092.75,0.00014246,2]
[356681239,1742941838707,-500.0,0.0001452,2]
[356681240,1742941838717,-574.26,0.0001452,2]
[356681241,1742941838726,-500.0,0.0001452,2]
[356681242,1742941838735,-500.0,0.0001452,2]
[356681243,1742941838745,-500.0,0.0001452,2]
[356681244,1742941838755,-500.0,0.0001452,2]
[356681245,1742941838764,-914.62608559,0.0001452,2]
[356681330,1742941852104,-178.12391441,0.0001452,2]
[356681331,1742941852113,-500.0,0.00014794,2]
[356681332,1742941852123,-574.26,0.00014794,2]
[356681333,1742941852132,-500.0,0.00014794,2]
[356681334,1742941852141,-500.0,0.00014794,2]
[356681335,1742941852150,-500.0,0.00014794,2]
[356681336,1742941852159,-500.0,0.00014794,2]
[356681337,1742941852168,-1092.75,0.00014794,2]
[356681338,1742941852177,-1000.0,0.00015,2]
[356681339,1742941852186,-231.54,0.00015068,2]
[356681340,1742941852196,-500.0,0.00015068,2]
[356681341,1742941852205,-579.62,0.00015068,2]
[356681342,1742941852214,-500.0,0.00015068,2]
[356681343,1742941852223,-500.0,0.00015068,2]
[356681344,1742941852233,-500.0,0.00015068,2]
[356681345,1742941852242,-618.51,0.00015068,2]
[356681346,1742941852251,-1958.7,0.00015068,2]
[356681347,1742941852261,-500.0,0.00015068,2]
[356681348,1742941852271,-500.0,0.00015068,2]
[356681349,1742941852280,-2188.46,0.00015068,2]
[356681350,1742941852290,-517.13,0.00015068,2]
[356681351,1742941852300,-1366.45,0.00015068,2]
[356681352,1742941852309,-500.0,0.00015068,2]
[356681353,1742941852319,-500.0,0.00015068,2]
[356681354,1742941852330,-574.26,0.00015068,2]
[356681355,1742941852339,-500.0,0.00015068,2]
[356681356,1742941852348,-500.0,0.00015068,2]
[356681357,1742941852357,-500.0,0.00015068,2]
[356681358,1742941852367,-500.0,0.00015068,2]
[356681359,1742941852376,-1092.75,0.00015068,2]
[356681360,1742941852385,-159.247357,0.00015068,2]
[356681361,1742941852395,-500.0,0.00015073,2]
[356681362,1742941852404,-500.0,0.00015073,2]
[356681363,1742941852413,-500.0,0.00015073,2]
[356681364,1742941852422,-500.0,0.00015073,2]
[356681365,1742941852432,-500.0,0.00015073,2]
[356681366,1742941852441,-500.0,0.00015073,2]
[356681367,1742941852450,-589.25975418,0.00015073,2]
[356681368,1742941852460,-500.72994597,0.00015073,2]
[356681369,1742941852469,-500.0,0.00015073,2]
[356681370,1742941852478,-500.0,0.00015073,2]
[356681371,1742941852487,-500.0,0.00015073,2]
[356681372,1742941852497,-500.0,0.00015073,2]
[356681373,1742941852506,-298.90427124,0.00015073,2]
[356681374,1742941852515,-500.0,0.00015073,2]
[356681375,1742941852525,-179.65864857,0.00015111,2]
[356681376,1742941852534,-500.0,0.00015342,2]
[356681377,1742941852543,-447.98310246,0.00015342,2]
[356681378,1742941852552,-500.0,0.00015342,2]
[356681379,1742941852562,-500.0,0.00015342,2]
[356681380,1742941852574,-618.51,0.00015342,2]
[356681381,1742941852583,-1958.7,0.00015342,2]
[356681382,1742941852592,-500.0,0.00015342,2]
[356681383,1742941852601,-500.0,0.00015342,2]
[356681384,1742941852611,-2188.46,0.00015342,2]
[356681385,1742941852620,-517.13,0.00015342,2]
[356681386,1742941852630,-1366.45,0.00015342,2]
[356681387,1742941852639,-500.0,0.00015342,2]
[356681388,1742941852649,-500.0,0.00015342,2]
[356681389,1742941852659,-574.26,0.00015342,2]
[356681390,1742941852668,-500.0,0.00015342,2]
[356681391,1742941852678,-500.0,0.00015342,2]
[356681392,1742941852688,-500.0,0.00015342,2]
[356681393,1742941852697,-500.0,0.00015342,2]
[356681394,1742941852707,-1092.75,0.00015342,2]
[356681395,1742941852717,-1000.0,0.00015376,2]
[356681396,1742941852726,-500.0,0.00015616,2]
[356681397,1742941852736,-500.0,0.00015616,2]
[356681398,1742941852746,-500.0,0.00015616,2]
[356681399,1742941852755,-618.51,0.00015616,2]
[356681400,1742941852764,-1958.7,0.00015616,2]
[356681401,1742941852774,-500.0,0.00015616,2]
[356681402,1742941852783,-500.0,0.00015616,2]
[356681403,1742941852794,-2188.46,0.00015616,2]
[356681404,1742941852803,-517.13,0.00015616,2]
[356681405,1742941852814,-1366.45,0.00015616,2]
[356681406,1742941852827,-500.0,0.00015616,2]
[356681407,1742941852838,-399.87,0.00015616,2]
[356681408,1742941852847,-574.26,0.00015616,2]
[356681409,1742941852856,-500.0,0.00015616,2]
[356681410,1742941852866,-500.0,0.00015616,2]
[356681411,1742941852875,-500.0,0.00015616,2]
[356681412,1742941852884,-500.0,0.00015616,2]
[356681413,1742941852894,-1092.75,0.00015616,2]
[356681414,1742941852903,-2500.0,0.0001574,2]
[356681415,1742941852913,-2500.0,0.00015749,2]
[356681416,1742941852923,-2500.0,0.00015758,2]
[356681417,1742941852932,-2500.0,0.00015767,2]
[356681418,1742941852942,-2500.0,0.00015776,2]
[356681419,1742941852952,-2500.0,0.00015784,2]
[356681420,1742941852962,-2500.0,0.00015793,2]
[356681421,1742941852972,-2500.0,0.00015802,2]
[356681422,1742941852981,-2500.0,0.00015811,2]
[356681423,1742941852992,-2500.0,0.0001582,2]
[356681424,1742941853001,-2500.0,0.00015828,2]
[356681425,1742941853010,-2500.0,0.00015837,2]
[356681426,1742941853019,-2500.0,0.00015846,2]
[356681427,1742941853030,-2500.0,0.00015855,2]
[356681428,1742941853039,-2500.0,0.00015864,2]
[356681429,1742941853048,-2500.0,0.00015872,2]
[356681430,1742941853057,-2500.0,0.00015881,2]
[356681431,1742941853067,-2500.0,0.0001589,2]
[356681432,1742941853077,-500.0,0.0001589,2]
[356681433,1742941853086,-500.0,0.0001589,2]
[356681434,1742941853096,-500.0,0.0001589,2]
[356681435,1742941853105,-618.51,0.0001589,2]
[356681436,1742941853115,-1958.7,0.0001589,2]
[356681437,1742941853124,-500.0,0.0001589,2]
[356681438,1742941853133,-500.0,0.0001589,2]
[356681439,1742941853143,-2188.46,0.0001589,2]
[356681440,1742941853152,-517.13,0.0001589,2]
[356681441,1742941853161,-1366.45,0.0001589,2]
[356681442,1742941853170,-500.0,0.0001589,2]
[356681443,1742941853179,-574.26,0.0001589,2]
[356681444,1742941853188,-500.0,0.0001589,2]
[356681445,1742941853197,-500.0,0.0001589,2]
[356681446,1742941853206,-208.35,0.0001589,2]
[356681447,1742941853215,-500.0,0.0001589,2]
[356681448,1742941853224,-1092.75,0.0001589,2]
[356681449,1742941853234,-503.2,0.00016,2]
[356681450,1742941853243,-219.22,0.00016164,2]
[356681451,1742941853253,-500.0,0.00016164,2]
[356681452,1742941853262,-500.0,0.00016164,2]
[356681453,1742941853272,-618.51,0.00016164,2]
[356681454,1742941853282,-1958.7,0.00016164,2]
[356681455,1742941853291,-500.0,0.00016164,2]
[356681456,1742941853301,-500.0,0.00016164,2]
[356681457,1742941853310,-2188.46,0.00016164,2]
[356681458,1742941853322,-517.13,0.00016164,2]
[356681459,1742941853331,-1366.45,0.00016164,2]
[356681460,1742941853341,-257.42498559,0.00016164,2]
[356681461,1742941853350,-574.26,0.00016164,2]
[356681462,1742941853360,-500.0,0.00016164,2]
[356681463,1742941853369,-585.02,0.00016164,2]
[356681464,1742941853378,-474.71046458,0.00016164,2]
[356681465,1742941853498,-25.28953542,0.00016164,2]
[356681466,1742941853507,-1092.75,0.00016164,2]
[356681467,1742941853517,-1000.0,0.00016352,2]
[356681468,1742941853526,-738.84873107,0.00016352,2]
[356681469,1742941853537,-261.15126893,0.00016352,2]
[356681470,1742941853548,-297.32746291,0.00016352,2]
[356681471,1742941853605,-702.67253709,0.00016352,2]
[356681472,1742941853614,-1000.0,0.00016352,2]
[356681473,1742941853624,-895.88371337,0.00016352,2]
[356681474,1742941853633,-1000.0,0.00016352,2]
[356681475,1742941853643,-1000.0,0.00016352,2]
[356681476,1742941853652,-200.0,0.00016438,2]
[356681477,1742941853661,-215.15,0.00016438,2]
[356681478,1742941853670,-500.0,0.00016438,2]
[356681479,1742941853679,-500.0,0.00016438,2]
[356681480,1742941853688,-618.51,0.00016438,2]
[356681481,1742941853697,-1958.7,0.00016438,2]
[356681482,1742941853707,-74.81713454,0.00016438,2]
[356681483,1742941865733,-235.20286546,0.00016438,2]
[356681484,1742941865743,-500.0,0.00016438,2]
[356681485,1742941865753,-2188.46,0.00016438,2]
[356681486,1742941865763,-1366.45,0.00016438,2]
[356681487,1742941865772,-574.26,0.00016438,2]
[356681488,1742941865782,-208.46256788,0.00016438,2]
[356681489,1742941865791,-1092.75,0.00016438,2]
[356681490,1742941865801,-1000.0,0.00016452,2]
[356681491,1742941865811,-1000.0,0.00016452,2]
[356681492,1742941865820,-500.0,0.00016712,2]
[356681493,1742941865830,-637.69,0.00016712,2]
[356681494,1742941865841,-618.51,0.00016712,2]
[356681495,1742941865851,-1958.7,0.00016712,2]
[356681496,1742941865860,-500.0,0.00016712,2]
[356681497,1742941865869,-2188.46,0.00016712,2]
[356681498,1742941865880,-1366.45,0.00016712,2]
[356681499,1742941865890,-574.26,0.00016712,2]
[356681500,1742941865899,-1092.75,0.00016712,2]
[356681501,1742941865909,-505.34,0.00016986,2]
[356681502,1742941865919,-618.51,0.00016986,2]
[356681503,1742941865928,-1958.7,0.00016986,2]
[356681504,1742941865938,-500.0,0.00016986,2]
[356681505,1742941865953,-2188.46,0.00016986,2]
[356681506,1742941865962,-1366.45,0.00016986,2]
[356681507,1742941865972,-574.26,0.00016986,2]
[356681508,1742941865981,-1092.75,0.00016986,2]
[356681509,1742941865992,-618.57,0.0001726,2]
[356681510,1742941866001,-1958.84,0.0001726,2]
[356681511,1742941866011,-436.22,0.0001726,2]
[356681512,1742941866021,-2188.49438666,0.0001726,2]
[356681513,1742941866032,-1366.45,0.0001726,2]
[356681514,1742941866042,-574.26,0.0001726,2]
[356681515,1742941866051,-1092.76508344,0.0001726,2]
[356681516,1742941866061,-1915.0,0.00017482,2]
[356681517,1742941866071,-2262.0,0.00017482,2]
[356681518,1742941866081,-400.0,0.00017482,2]
[356681519,1742941866092,-1000.0,0.00017861,2]
[356681520,1742941866102,-1000.0,0.00017861,2]
[356681521,1742941866111,-1000.0,0.00017861,2]
[356681522,1742941866120,-1000.0,0.00017861,2]
[356681523,1742941866130,-1000.0,0.00017861,2]
[356681524,1742941866139,-1000.0,0.00017861,2]
[356681525,1742941866148,-500.0,0.00017861,2]
[356681526,1742941866158,-1000.0,0.00017861,2]
[356681527,1742941866168,-1000.0,0.00017861,2]
[356681528,1742941866178,-500.0,0.00017861,2]
[356681529,1742941866187,-1000.0,0.00017861,2]
[356681530,1742941866197,-1000.0,0.00017861,2]
[356681531,1742941866207,-159.28,0.000186,2]
[356681532,1742941866216,-159.28,0.000186,2]
[356681533,1742941866226,-500.0,0.00019178,2]
[356681534,1742941866240,-500.0,0.00019178,2]
[356681535,1742941866250,-500.0,0.00019178,2]
[356681536,1742941866260,-500.0,0.00019178,2]
[356681537,1742941866270,-500.0,0.00019178,2]
[356681538,1742941866280,-500.0,0.00019178,2]
[356681539,1742941866290,-500.0,0.00019178,2]
[356681540,1742941866300,-500.0,0.00019178,2]
[356681541,1742941866310,-500.0,0.00019178,2]
[356681542,1742941866319,-500.0,0.00019178,2]
[356681543,1742941866329,-500.0,0.00019178,2]
[356681544,1742941866340,-500.0,0.00019178,2]
[356681545,1742941866350,-500.0,0.00019178,2]
[356681546,1742941866360,-500.0,0.00019178,2]
[356681547,1742941866370,-500.0,0.00019178,2]
[356681548,1742941866380,-500.0,0.00019178,2]
[356681549,1742941866390,-500.0,0.00019178,2]
[356681550,1742941866400,-500.0,0.00019178,2]
[356681551,1742941866411,-500.0,0.00019178,2]
[356681552,1742941866420,-500.0,0.00019178,2]
[356681553,1742941866431,-500.0,0.00019178,2]
[356681554,1742941866441,-500.0,0.00019178,2]
[356681555,1742941866451,-500.0,0.00019178,2]
[356681556,1742941866460,-500.0,0.00019178,2]
[356681557,1742941866470,-500.0,0.00019178,2]
[356681558,1742941866479,-500.0,0.00019178,2]
[356681559,1742941866489,-500.0,0.00019178,2]
[356681560,1742941866499,-500.0,0.00019178,2]
[356681561,1742941866509,-500.0,0.00019178,2]
[356681562,1742941866518,-500.0,0.00019178,2]
[356681563,1742941866528,-500.0,0.00019178,2]
[356681564,1742941866538,-500.0,0.00019178,2]
[356681565,1742941866547,-500.0,0.00019178,2]
[356681566,1742941866557,-159.247357,0.00019178,2]
[356681567,1742941866568,-501.39272971,0.00019178,2]
[356681568,1742941866577,-1000.0,0.00019178,2]
[356681569,1742941866588,-1000.0,0.00019178,2]
[356681570,1742941866599,-150.0,0.0001919,4]
[356681571,1742941866609,-150.0,0.0001919,4]
[356681572,1742941866618,-1000.0,0.00019224,2]
[356681573,1742941866628,-1164.138119,0.0001994,5]
[356681574,1742941866637,-1000.0,0.0001996,5]
[356681575,1742941866647,-1000.0,0.0001998,5]
[356681576,1742941866657,-2000.0,0.0002,2]
[356681577,1742941866667,-150.0,0.0002,2]
[356681578,1742941866677,-151.16746634,0.0002,2]
[356681579,1742941866687,-1000.0,0.0002,5]
[356681580,1742941866696,-470.0,0.0002,3]
[356681581,1742941866706,-150.0,0.0002,30]
[356681582,1742941866716,-400.0,0.00020482,2]
[356681583,1742941866726,-186.807722,0.00020548,2]
[356681584,1742941866735,-1000.0,0.00020552,2]
[356681585,1742941866745,-499.35080922,0.00020552,2]
[356681586,1742941866754,-1000.0,0.00020552,2]
[356681587,1742941866763,-1000.0,0.00020552,2]
[356681588,1742941866773,-1000.0,0.00020552,2]
[356681589,1742941866783,-1000.0,0.00020552,2]
[356681590,1742941866793,-1000.0,0.00020552,2]
[356681591,1742941866803,-1000.0,0.00020552,2]
[356681592,1742941866812,-1000.0,0.00020552,2]
[356681593,1742941866822,-914.82196629,0.00020552,2]
[356681594,1742941866902,-85.17803371,0.00020552,2]
[356681595,1742941866912,-426.85066768,0.00020552,2]
[356681596,1742941866922,-487.97129861,0.00021,2]
[356681597,1742941866933,-724.22604502,0.00021,2]
[356681598,1742941866970,-38.74448619,0.00021,2]
[356681599,1742941866982,-749.05817018,0.00021,2]
[356681600,1742941866993,-158.39,0.00021,2]
[356681601,1742941867007,-893.9,0.00022,2]
[356681602,1742941867020,-179.65864857,0.00022667,2]
[356681603,1742941867034,-289.031,0.0002274,2]
[356681604,1742941867047,-1000.0,0.00023071,2]
[356681605,1742941867060,-159.247357,0.00023288,2]
[356681606,1742941867070,-163.89133087,0.00024,5]
[356681607,1742941867081,-500.0,0.00024657,2]
[356681608,1742941867099,-500.0,0.00024657,2]
[356681609,1742941867111,-500.0,0.00024657,2]
[356681610,1742941867122,-500.0,0.00024657,2]
[356681611,1742941867134,-500.0,0.00024657,2]
[356681612,1742941867147,-380.0,0.00024658,2]
[356681613,1742941867159,-8626.25418668,0.000249,2]
[356681614,1742941867175,-8769.33151287,0.000249,2]
[356681615,1742941867190,-1607.33871831,0.000249,2]
[356681616,1742941867205,-2260.17805655,0.000249,2]
[356681617,1742941867300,-17171.01512391,0.000249,2]
[356681618,1742941867674,-450.66000005,0.000249,2]
[356681619,1742941867785,-290.0,0.000249,2]
[356681620,1742941867798,-558848.52458044,0.000249,2]
[356681621,1742941867812,-21889.38492819,0.000249,2]
[356681622,1742941867822,-1082.069059,0.0002498,5]
[356681623,1742941867833,-1000.0,0.00025,5]
[356681624,1742941867844,-1500.0,0.00026371,2]
[356681625,1742941867855,-494.24153242,0.00026371,2]
[356681626,1742941867867,-1500.0,0.00026371,2]
[356681627,1742941867878,-1500.0,0.00026371,2]
[356681628,1742941867888,-500.0,0.00026371,2]
[356681629,1742941867898,-1006.30080193,0.00026371,2]
[356681630,1742941867910,-1000.0,0.00026471,2]
[356681631,1742941867920,-2000.0,0.0002654,4]
[356681632,1742941867931,-2400.0,0.00026746,7]
[356681633,1742941867943,-1000.0,0.00026919,2]
[356681634,1742941867957,-150.26,0.00027397,2]
[356681635,1742941867968,-162.74845429,0.00027397,2]
[356681636,1742941867979,-150.26,0.00027397,2]
[356681637,1742941867989,-252.2874465,0.00027397,2]
[356681638,1742941868002,-158.95694844,0.00027397,2]
[356681639,1742941868013,-150.60179117,0.00027397,2]
[356681640,1742941868029,-150.26,0.00027397,2]
[356681641,1742941868041,-150.26,0.00027397,2]
[356681642,1742941868051,-153.36917616,0.00027397,2]
[356681643,1742941868062,-159.247357,0.00027397,2]
[356681644,1742941868073,-188.553299,0.00027397,120]
[356681645,1742941868083,-150.26,0.00027534,2]
[356681646,1742941868095,-150.26,0.00027534,2]
[356681647,1742941868105,-150.26,0.00027534,2]
[356681648,1742941868115,-2400.0,0.00027568,7]
[356681649,1742941868126,-150.26,0.00027671,2]
[356681650,1742941868137,-150.26,0.00027671,2]
[356681651,1742941868148,-199.48,0.00027671,2]
[356681652,1742941868158,-150.26,0.00027808,2]
[356681653,1742941868169,-150.26,0.00027808,2]
[356681654,1742941868180,-1500.0,0.0002788,5]
[356681655,1742941868190,-1500.0,0.0002788,5]
[356681656,1742941868201,-1500.0,0.0002788,5]
[356681657,1742941868212,-1500.0,0.0002788,5]
[356681658,1742941868223,-1500.0,0.0002788,5]
[356681659,1742941868234,-1500.0,0.0002788,5]
[356681660,1742941868245,-1500.0,0.0002788,5]
[356681661,1742941868255,-1500.0,0.0002788,5]
[356681662,1742941868264,-1500.0,0.0002788,5]
[356681663,1742941868273,-1500.0,0.0002788,5]
[356681664,1742941868283,-150.26,0.00027945,2]
[356681665,1742941868292,-212.77233579,0.00027945,2]
[356681666,1742941868302,-31142.02378002,0.00028,7]
[356681667,1742941868311,-418.3522718,0.00028,7]
[356681668,1742941868320,-834.75273087,0.00028,7]
[356681669,1742941868330,-164.46553778,0.00028082,2]
[356681670,1742941868340,-2000.0,0.00028223,4]
[356681671,1742941868350,-2400.0,0.0002839,7]
[356681672,1742941868359,-160.0,0.000284,7]
[356681673,1742941868369,-160.0,0.000284,7]
[356681674,1742941868378,-680.40654039,0.00029197,5]
[356681675,1742941868388,-1500.0,0.00029197,5]
[356681676,1742941868398,-2400.0,0.00029212,7]
[356681677,1742941868407,-2000.0,0.00029905,4]
[356681678,1742941868417,-4927.59289565,0.0002996,7]
[356681679,1742941868427,-2142.0,0.0003,2]
[356681680,1742941868437,-500.0,0.0003,10]
[356681681,1742941868447,-300.1507198,0.0003,2]
[356681682,1742941868457,-397.22400499,0.0003,10]
[356681683,1742941868467,-11244.28306099,0.0003,60]
[356681684,1742941868477,-8063.53155758,0.0003,10]
[356681685,1742941868486,-1363.03220789,0.0003,30]
[356681686,1742941868495,-3165.72449028,0.0003,120]
[356681687,1742941868505,-500.57796562,0.0003,120]
[356681688,1742941868515,-418.3522718,0.0003,10]
[356681689,1742941868524,-834.75273087,0.0003,10]
[356681690,1742941868534,-267.0,0.0003,2]
[356681691,1742941868544,-1500.0,0.00030571,5]